bitfinex-derivatives/quotes_BTCF0:USTF0_20241213
["timestamp","ask_amount","ask_price","bid_price","bid_amount"]
[1734048001516,0.26846737,100030.0,100020.0,0.58449756]
[1734048002310,0.26846737,100030.0,100020.0,0.55169756]
[1734048002613,0.26846737,100030.0,100020.0,0.91249756]
[1734048003713,0.29856737,100030.0,100020.0,0.91249756]
[1734048004611,0.17924854,100030.0,100020.0,0.91249756]
[1734048006110,0.21144854,100030.0,100020.0,0.55169756]
[1734048006314,0.57224854,100030.0,100020.0,0.29979603]
[1734048006704,0.75122679,100030.0,100020.0,0.41973218]
[1734048006914,0.57224854,100030.0,100020.0,0.41973218]
[1734048007214,0.63307825,100030.0,100020.0,0.17988791]
[1734048007804,0.6429729,100030.0,100020.0,0.17988791]
[1734048008001,0.64285921,100030.0,100020.0,0.17988791]
[1734048008301,0.64285921,100030.0,100010.0,0.45173487]
[1734048008508,0.26818428,100020.0,100010.0,0.45173487]
[1734048008907,0.26818428,100020.0,100010.0,0.27184696]
[1734048009517,0.26818428,100020.0,100010.0,0.51453465]
[1734048010005,0.26818428,100020.0,100010.0,0.87533465]
[1734048010408,0.20855445,100020.0,100010.0,0.87533465]
[1734048010797,0.20855445,100020.0,100010.0,1.28027962]
[1734048011003,0.20855445,100020.0,100010.0,1.31057962]
[1734048011202,0.08936144,100020.0,100010.0,1.07073266]
[1734048011404,0.08936144,100020.0,100010.0,1.13370729]
[1734048011603,0.08936144,100020.0,100010.0,1.49347773]
[1734048011810,0.2184491,100030.0,100010.0,1.49347773]
[1734048012007,0.2184491,100030.0,100020.0,0.90593722]
[1734048012811,0.2184491,100030.0,100020.0,0.72628524]
[1734048013011,0.11919301,100030.0,100020.0,0.72628524]
[1734048013209,0.20856385,100030.0,100020.0,1.02608127]
[1734048014007,0.20856385,100030.0,100020.0,0.72628524]
[1734048014516,0.20856385,100030.0,100020.0,0.90013201]
[1734048014710,0.20856385,100030.0,100020.0,0.96310664]
[1734048015014,0.20856385,100030.0,100020.0,1.02608127]
[1734048015904,0.20856385,100030.0,100020.0,0.80104634]
[1734048016206,0.20856385,100030.0,100020.0,0.60230664]
[1734048016614,0.20856385,100030.0,100020.0,0.86467535]
[1734048017119,0.11919301,100030.0,100020.0,0.30251061]
[1734048017415,0.15189301,100030.0,100020.0,0.23953598]
[1734048017610,0.15189301,100030.0,100020.0,0.30251061]
[1734048018619,0.24126637,100030.0,100020.0,0.60230664]
[1734048018807,0.24126637,100030.0,100020.0,0.48217599]
[1734048019316,0.24126637,100030.0,100020.0,1.22581517]
[1734048019816,0.24126637,100030.0,100020.0,1.2887898]
[1734048020416,0.24126637,100030.0,100020.0,1.22581517]
[1734048021319,0.24126637,100030.0,100020.0,1.16284054]
[1734048021513,0.24126637,100030.0,100020.0,0.60230664]
[1734048021914,0.24126637,100030.0,100020.0,0.48218566]
[1734048022116,0.24127383,100030.0,100020.0,0.48218566]
[1734048022324,0.30088428,100030.0,100020.0,0.48218566]
[1734048023223,0.30088428,100030.0,100020.0,0.41921103]
[1734048023526,0.30088428,100030.0,100020.0,0.48218566]
[1734048027116,0.30088428,100030.0,100020.0,1.98218566]
[1734048027518,0.30088428,100030.0,100020.0,1.91921103]
[1734048027820,0.30088428,100030.0,100020.0,1.80251061]
[1734048028214,0.30088428,100030.0,100020.0,1.98222353]
[1734048028414,0.30088428,100030.0,100020.0,1.80251061]
[1734048029023,0.24133267,100030.0,100020.0,2.36669317]
[1734048030423,0.29130467,100030.0,100020.0,2.41667017]
[1734048031827,0.24133267,100030.0,100020.0,2.41667017]
[1734048032322,0.26161226,100030.0,100020.0,2.41667017]
[1734048033920,0.1721726,100030.0,100020.0,2.41667017]
[1734048034130,0.26162614,100030.0,100020.0,2.41623334]
[1734048034321,0.26162968,100030.0,100020.0,2.41623334]
[1734048035123,0.26162968,100030.0,100020.0,2.53749736]
[1734048035124,0.31160168,100030.0,100020.0,2.53749736]
[1734048035326,0.31160168,100030.0,100020.0,2.77714288]
[1734048035530,0.31160168,100030.0,100020.0,2.53749736]
[1734048036218,0.31160168,100030.0,100020.0,2.77713888]
[1734048036626,0.31160168,100030.0,100020.0,2.53749736]
[1734048037029,0.37457631,100030.0,100020.0,1.21416417]
[1734048037237,0.77569249,100030.0,100020.0,0.41940523]
[1734048037525,1.01975705,100030.0,100020.0,0.41940523]
[1734048043528,0.93374041,100030.0,100020.0,0.12985072]
[1734048043724,0.049977,100020.0,100010.0,0.36950523]
[1734048043925,0.86470325,100020.0,100010.0,0.36950523]
[1734048044124,0.86470325,100020.0,100010.0,0.12985072]
[1734048044330,0.96467825,100020.0,100010.0,0.12985072]
[1734048045219,0.049982,100010.0,100000.0,0.70045451]
[1734048045419,0.3812054,100010.0,100000.0,0.70045451]
[1734048045625,0.4139054,100010.0,100000.0,0.70045451]
[1734048045837,0.5440004,100010.0,100000.0,0.70045451]
[1734048046127,0.9048004,100010.0,100000.0,0.38340516]
[1734048046325,0.9048004,100010.0,100000.0,0.1]
[1734048048631,0.91488429,100010.0,100000.0,0.1]
[1734048050133,0.85501733,100010.0,100000.0,0.1]
[1734048050931,0.85501733,100010.0,100000.0,1.6]
[1734048052532,0.91488429,100010.0,100000.0,0.1]
[1734048054231,0.85190966,100010.0,100000.0,0.1]
[1734048054437,0.87221764,100010.0,100000.0,0.1]
[1734048054642,0.93519227,100010.0,100000.0,0.1]
[1734048056337,0.78611182,100010.0,100000.0,0.1]
[1734048057933,0.93519227,100010.0,100000.0,0.1]
[1734048060940,0.9981669,100010.0,100000.0,0.1]
[1734048061448,0.997831,100010.0,100000.0,0.1]
[1734048062836,0.87899858,100010.0,100000.0,0.1]
[1734048063042,0.75304932,100010.0,100000.0,0.1]
[1734048063245,1.05789512,100010.0,100000.0,0.1]
[1734048065148,1.35789512,100010.0,100000.0,0.1]
[1734048065345,1.20881467,100010.0,100000.0,0.05149044]
[1734048065549,1.23872609,100010.0,100000.0,4.6e-07]
[1734048065855,0.049992,99991.0,99990.0,7.407e-05]
[1734048066046,0.771592,99991.0,99990.0,7.407e-05]
[1734048066547,0.871587,99991.0,99990.0,7.407e-05]
[1734048068439,0.3608,99991.0,99990.0,7.407e-05]
[1734048068646,0.3608,99991.0,99990.0,0.06347407]
[1734048068954,0.3608,99991.0,99990.0,1.56347407]
[1734048068955,0.3109,99991.0,99990.0,1.56347407]
[1734048069648,0.32089758,99991.0,99990.0,0.06347407]
[1734048070057,0.32089758,99991.0,99990.0,1.56347407]
[1734048070248,0.32089758,99991.0,99990.0,0.06347407]
[1734048071451,0.08916288,100000.0,99999.0,0.049988]
[1734048071655,0.03926288,100000.0,99999.0,0.049988]
[1734048071856,0.01008045,100010.0,99999.0,0.049988]
[1734048072058,0.410778,100020.0,100000.0,0.12594926]
[1734048072256,0.4208894,100020.0,100010.0,0.049982]
[1734048072456,0.4208894,100020.0,100010.0,0.11295663]
[1734048072756,0.0600894,100020.0,100010.0,0.11295663]
[1734048072954,0.0600894,100020.0,100010.0,0.17645663]
[1734048073256,0.20887197,100020.0,100010.0,0.113482]
[1734048073454,0.38741106,100020.0,100010.0,0.113482]
[1734048073748,0.20887197,100020.0,100010.0,0.113482]
[1734048074141,0.32794749,100020.0,100010.0,1.613482]
[1734048074347,0.17916492,100020.0,100010.0,1.613482]
[1734048074541,0.32794749,100020.0,100010.0,0.113482]
[1734048074848,0.32794749,100020.0,100010.0,0.0635]
[1734048074849,0.63593723,100020.0,100010.0,0.0635]
[1734048076956,0.53996492,100020.0,100010.0,0.0635]
[1734048077156,0.73592223,100020.0,100010.0,0.0311]
[1734048077349,0.049982,100010.0,100000.0,0.28932874]
[1734048077755,0.049982,100010.0,100000.0,0.049985]
[1734048078949,0.049982,100010.0,100000.0,0.14595731]
[1734048079151,0.049982,100010.0,100000.0,0.38530105]
[1734048079963,0.049982,100010.0,100000.0,0.28932874]
[1734048080254,0.049982,100010.0,100000.0,0.049985]
[1734048081357,0.049982,100010.0,100000.0,0.28932874]
[1734048081759,0.049982,100010.0,100000.0,0.049985]
[1734048083960,0.049982,100010.0,100000.0,1.549985]
[1734048084463,0.049982,100010.0,100000.0,0.049985]
[1734048086367,0.049982,100010.0,100000.0,0.14595731]
[1734048087670,0.049982,100010.0,100000.0,0.049985]
[1734048089870,0.049991,99993.0,99992.0,1.5]
[1734048090163,0.049991,99993.0,99992.0,0.049991]
[1734048091761,0.049992,99991.0,99990.0,7.407e-05]
[1734048097968,0.049992,99991.0,99990.0,0.05006607]
[1734048101564,0.00998265,99993.0,99992.0,0.049991]
[1734048101770,0.410789,99996.0,99995.0,0.04999]
[1734048102471,0.42062892,99996.0,99995.0,0.04999]
[1734048103163,0.05982892,99996.0,99995.0,0.04999]
[1734048104270,0.00983992,99996.0,99995.0,0.04999]
[1734048104466,0.11891724,100000.0,99990.0,7.407e-05]
[1734048104669,0.11891724,100000.0,99998.0,0.049988]
[1734048104973,0.19863255,100010.0,100000.0,0.049987]
[1734048104974,0.31754979,100010.0,100000.0,0.049987]
[1734048106063,0.68857534,100010.0,100000.0,0.049987]
[1734048106466,0.63267178,100010.0,100000.0,0.049987]
[1734048111876,0.66527178,100010.0,100000.0,0.049987]
[1734048112274,0.84364764,100010.0,100000.0,0.049987]
[1734048116671,0.66527178,100010.0,99990.0,0.29892173]
[1734048116871,0.049988,99999.0,99998.0,0.23972012]
[1734048117076,0.049988,99998.0,99997.0,0.23972012]
[1734048117379,0.049988,99998.0,99996.0,0.049989]
[1734048117971,0.049989,99997.0,99996.0,0.049989]
[1734048120177,0.049989,99997.0,99996.0,0.23979164]
[1734048120369,0.049989,99997.0,99995.0,0.23979164]
[1734048120576,0.049991,99993.0,99992.0,0.23979164]
[1734048120876,0.049992,99991.0,99990.0,7.407e-05]
[1734048121480,0.16916999,99991.0,99990.0,7.407e-05]
[1734048121870,0.149996,99991.0,99990.0,7.407e-05]
[1734048122071,0.29894444,99991.0,99990.0,7.407e-05]
[1734048122281,0.049992,99991.0,99990.0,7.407e-05]
[1734048123370,0.06004627,99991.0,99990.0,7.407e-05]
[1734048126080,0.21158526,99991.0,99990.0,7.407e-05]
[1734048126886,0.09244627,99991.0,99990.0,7.407e-05]
[1734048128182,0.21154065,99991.0,99990.0,7.407e-05]
[1734048129281,0.09244627,99991.0,99990.0,7.407e-05]
[1734048130184,0.21154065,99991.0,99990.0,7.407e-05]
[1734048130384,0.09244627,99991.0,99990.0,7.407e-05]
[1734048132883,0.21154065,99991.0,99990.0,7.407e-05]
[1734048134182,0.09244627,99991.0,99990.0,7.407e-05]
[1734048134382,0.21154065,99991.0,99990.0,7.407e-05]
[1734048134979,0.09244627,99991.0,99990.0,7.407e-05]
[1734048135179,0.21149881,99991.0,99990.0,7.407e-05]
[1734048135392,0.09244627,99991.0,99990.0,7.407e-05]
[1734048140684,0.01005427,99991.0,99990.0,0.05006607]
[1734048140990,0.11905254,99995.0,99994.0,0.04999]
[1734048141187,0.11905254,99995.0,99994.0,1.54999]
[1734048141386,0.16904154,99997.0,99995.0,0.04999]
[1734048141581,0.049989,99997.0,99995.0,0.04999]
[1734048141791,0.049989,99997.0,99990.0,7.407e-05]
[1734048141792,0.00998846,99997.0,99996.0,0.049989]
[1734048141979,0.26800098,100000.0,99999.0,0.049988]
[1734048142185,0.11905254,100000.0,99999.0,0.049988]
[1734048142589,0.12897862,100000.0,99999.0,0.049988]
[1734048145887,0.17896562,100000.0,99999.0,0.049988]
[1734048147589,0.05991308,100000.0,99999.0,0.049988]
[1734048148196,0.17896562,100000.0,99999.0,0.049988]
[1734048148491,0.17896562,100000.0,99991.0,0.0635]
[1734048148492,0.049991,99993.0,99991.0,0.0315]
[1734048148693,0.049991,99993.0,99991.0,0.081491]
[1734048148893,0.049991,99993.0,99992.0,0.049991]
[1734048157001,0.049988,99999.0,99996.0,0.049989]
[1734048157499,0.049988,99998.0,99996.0,0.049989]
[1734048158901,0.12897862,100000.0,99991.0,0.0315]
[1734048159098,0.12897862,100000.0,99999.0,0.049988]
[1734048159299,0.00992608,100000.0,99999.0,0.049988]
[1734048159500,0.049987,100000.0,99999.0,0.049988]
[1734048164209,0.71956363,100010.0,99999.0,0.049988]
[1734048164514,0.71956363,100010.0,100000.0,0.17967545]
[1734048165005,0.27777963,100010.0,100000.0,0.54047545]
[1734048165208,0.12883119,100010.0,100000.0,0.78004181]
[1734048165510,0.12883119,100010.0,100000.0,0.81324181]
[1734048165703,0.12883119,100010.0,100000.0,1.11158877]
[1734048166400,0.00977865,100010.0,100000.0,0.93191332]
[1734048166602,0.37777158,100020.0,100000.0,0.93191332]
[1734048166810,0.37777158,100020.0,100010.0,0.410782]
[1734048167708,0.38787033,100020.0,100010.0,0.410782]
[1734048168612,0.33789233,100020.0,100010.0,0.410782]
[1734048168817,0.33789233,100020.0,100010.0,0.441482]
[1734048184027,0.33789233,100020.0,100010.0,0.45140156]
[1734048184323,0.33789233,100020.0,100010.0,0.441482]
[1734048187823,0.33789233,100020.0,100010.0,1.941482]
[1734048188021,0.01009875,100020.0,100010.0,2.74180536]
[1734048188231,0.18206534,100030.0,100020.0,0.049977]
[1734048188528,0.18206534,100030.0,100020.0,0.59028555]
[1734048190019,0.18206534,100030.0,100020.0,0.82985191]
[1734048190323,0.18206534,100030.0,100020.0,0.59028555]
[1734048190514,0.11916534,100030.0,100020.0,0.82985191]
[1734048191815,0.20857569,100030.0,100020.0,0.82985191]
[1734048192728,0.21876237,100030.0,100020.0,0.82985191]
[1734048193320,0.21876237,100030.0,100020.0,2.3397253]
[1734048193517,0.12935202,100030.0,100020.0,0.8397253]
[1734048193828,0.2187904,100030.0,100020.0,0.8397253]
[1734048194521,0.12935202,100030.0,100020.0,0.8397253]
[1734048194728,0.27834793,100030.0,100020.0,0.8397253]
[1734048195128,0.12935202,100030.0,100020.0,0.8397253]
[1734048195431,0.27834793,100030.0,100020.0,0.8397253]
[1734048196325,0.27834793,100030.0,100020.0,0.82985191]
[1734048196632,0.34114793,100030.0,100020.0,0.82985191]
[1734048196836,0.19215202,100030.0,100020.0,0.65034336]
[1734048197033,0.19215202,100030.0,100020.0,0.83000681]
[1734048197034,0.34114793,100030.0,100020.0,0.83000681]
[1734048198323,0.68870926,100060.0,100050.0,0.049962]
[1734048198523,0.72020926,100060.0,100050.0,0.2295488]
[1734048198724,0.54129591,100060.0,100050.0,0.2295488]
[1734048199332,0.04127254,100060.0,100050.0,0.2295488]
[1734048199732,0.04127254,100060.0,100050.0,0.46899786]
[1734048199928,0.04127254,100060.0,100050.0,0.82979786]
[1734048200833,0.00977254,100060.0,100050.0,0.82979786]
[1734048201027,0.18129591,100070.0,100060.0,0.049957]
[1734048201231,0.0323,100070.0,100060.0,0.049957]
[1734048201434,0.07375665,100070.0,100060.0,0.049957]
[1734048203444,0.10545665,100070.0,100060.0,0.049957]
[1734048207447,0.063,100070.0,100060.0,0.410757]
[1734048207739,0.0313,100070.0,100060.0,0.410757]
[1734048208147,0.00999457,100080.0,100070.0,0.049952]
[1734048208342,0.0312,100080.0,100070.0,0.410752]
[1734048211743,0.04129233,100080.0,100070.0,0.410752]
[1734048212341,0.01009233,100080.0,100070.0,0.410752]
[1734048212541,0.113153,100090.0,100070.0,0.442952]
[1734048212735,0.113153,100090.0,100080.0,0.049947]
[1734048213249,0.06321,100090.0,100080.0,0.049947]
[1734048215141,0.06321,100090.0,100080.0,0.410747]
[1734048215442,0.07167256,100090.0,100080.0,0.410747]
[1734048215939,0.04087256,100090.0,100080.0,0.410747]
[1734048216340,0.00987256,100090.0,100080.0,0.410747]
[1734048216649,0.182638,100100.0,100090.0,0.049942]
[1734048217539,0.1327,100100.0,100090.0,0.049942]
[1734048218143,0.1327,100100.0,100090.0,0.410742]
[1734048218741,0.1406196,100100.0,100090.0,0.410742]
[1734048220238,0.1079196,100100.0,100090.0,0.410742]
[1734048222544,0.1079196,100100.0,100090.0,0.443342]
[1734048235260,0.1079196,100100.0,100090.0,0.6229288]
[1734048235849,0.1578566,100100.0,100090.0,0.2295288]
[1734048236055,0.1578566,100100.0,100090.0,0.049942]
[1734048237052,0.30685251,100100.0,100090.0,0.049942]
[1734048238454,0.24899591,100100.0,100090.0,0.2295288]
[1734048238659,0.1,100100.0,100090.0,0.82977786]
[1734048238960,0.14899591,100110.0,100100.0,0.049937]
[1734048239152,0.14899591,100120.0,100110.0,0.049932]
[1734048239351,0.15690841,100140.0,100110.0,1.03559091]
[1734048239558,0.15690841,100140.0,100130.0,0.59006041]
[1734048239961,0.14899591,100140.0,100130.0,0.59006041]
[1734048240658,0.14899591,100140.0,100130.0,2.09006041]
[1734048241455,0.049917,100140.0,100130.0,2.09006041]
[1734048241658,0.19891291,100140.0,100130.0,1.549922]
[1734048241955,0.55971291,100140.0,100130.0,0.049922]
[1734048242156,0.049922,100130.0,100120.0,0.22926341]
[1734048242459,0.442322,100130.0,100120.0,0.049925]
[1734048242657,0.081522,100130.0,100120.0,0.049925]
[1734048243165,0.23051791,100130.0,100120.0,0.049925]
[1734048243868,0.081522,100130.0,100120.0,0.049925]
[1734048245566,0.442322,100130.0,100120.0,0.0473224]
[1734048245770,0.59131791,100130.0,100120.0,0.0473224]
[1734048247067,0.049927,100120.0,100110.0,0.049931]
[1734048247364,0.474727,100120.0,100110.0,0.049931]
[1734048247568,0.62372291,100120.0,100110.0,0.049931]
[1734048248358,0.57379591,100120.0,100100.0,2.04013841]
[1734048248558,0.081732,100110.0,100100.0,2.09007341]
[1734048248757,0.081732,100110.0,100100.0,1.549935]
[1734048251065,0.442532,100110.0,100100.0,1.549935]
[1734048251361,0.59152791,100110.0,100100.0,1.549935]
[1734048252860,0.23072791,100110.0,100100.0,1.549935]
[1734048253066,0.59152791,100110.0,100100.0,1.549935]
[1734048253269,0.442532,100110.0,100100.0,1.549935]
[1734048253473,0.59152791,100110.0,100100.0,1.549935]
[1734048253664,0.59934716,100110.0,100100.0,1.549935]
[1734048254369,0.23854716,100110.0,100100.0,1.549935]
[1734048254563,0.59934716,100110.0,100100.0,1.549935]
[1734048255266,0.45035125,100110.0,100100.0,1.549935]
[1734048258068,0.56981012,100110.0,100100.0,1.549935]
[1734048260669,0.20901012,100110.0,100100.0,1.549935]
[1734048266276,0.20901012,100110.0,100100.0,0.049935]
[1734048266476,0.12727812,100110.0,100100.0,0.17568352]
[1734048266681,0.12727812,100110.0,100100.0,0.35502193]
[1734048266881,0.12727812,100110.0,100100.0,1.88522193]
[1734048267967,0.12727812,100110.0,100100.0,1.82234767]
[1734048268169,0.17721012,100110.0,100100.0,1.82234767]
[1734048268370,0.11945887,100110.0,100100.0,2.24602193]
[1734048268581,0.67918278,100120.0,100110.0,0.049932]
[1734048268781,0.31838278,100120.0,100110.0,0.17420626]
[1734048269083,0.16938687,100120.0,100110.0,0.17420626]
[1734048269379,0.11945887,100120.0,100110.0,0.38644911]
[1734048269883,0.12757126,100120.0,100110.0,0.38644911]
[1734048271076,0.12757126,100120.0,100110.0,0.29067041]
[1734048271284,0.17749826,100120.0,100110.0,0.29067041]
[1734048271474,0.32649417,100120.0,100110.0,0.29067041]
[1734048272077,0.32649417,100120.0,100110.0,0.111332]
[1734048272276,0.32649417,100120.0,100110.0,0.29067041]
[1734048272685,0.663614,100120.0,100110.0,0.17933841]
[1734048272885,0.049932,100110.0,100100.0,0.82919029]
[1734048273085,0.16952842,100110.0,100100.0,0.82919029]
[1734048273386,0.31852433,100110.0,100100.0,0.82919029]
[1734048274089,0.16952842,100110.0,100100.0,0.82919029]
[1734048274385,0.31852433,100110.0,100100.0,0.82919029]
[1734048277585,0.19892791,100110.0,100100.0,0.82919029]
[1734048277887,0.19892791,100110.0,100100.0,0.82937036]
[1734048278086,0.23082791,100110.0,100100.0,0.82937036]
[1734048278587,0.23082791,100110.0,100100.0,0.82940747]
[1734048280293,0.35054447,100110.0,100100.0,0.82940747]
[1734048280479,0.23082791,100110.0,100100.0,0.64985188]
[1734048281175,0.23082791,100110.0,100100.0,0.17954256]
[1734048281176,0.81638495,100110.0,100100.0,0.17954256]
[1734048281378,0.049937,100100.0,100090.0,0.46860144]
[1734048281682,0.8020625,100100.0,100090.0,1.96860144]
[1734048282187,0.8020625,100100.0,100090.0,0.46860144]
[1734048283481,0.8020625,100100.0,100090.0,0.22948356]
[1734048284392,0.62398336,100100.0,100090.0,0.22948356]
[1734048286487,0.63237127,100100.0,100090.0,0.22948356]
[1734048290396,0.75199155,100100.0,100090.0,0.22948356]
[1734048291188,0.81488499,100100.0,100090.0,0.22948356]
[1734048293004,0.75199155,100100.0,100090.0,0.292377]
[1734048294006,0.81488499,100100.0,100090.0,0.22948356]
[1734048294294,0.81488499,100100.0,100090.0,0.049941]
[1734048296787,0.81488499,100100.0,100090.0,0.11283444]
[1734048296788,0.68839155,100100.0,100090.0,0.11283444]
[1734048296992,0.75128499,100100.0,100090.0,0.049941]
[1734048297192,0.75128499,100100.0,100090.0,0.11283444]
[1734048297392,0.68839155,100100.0,100090.0,0.11283444]
[1734048297706,0.75128499,100100.0,100090.0,0.049941]
[1734048298002,0.68839155,100100.0,100090.0,0.049941]
[1734048298700,0.68839155,100100.0,100090.0,0.11283444]
[1734048299996,0.27765455,100100.0,100090.0,0.653177]
[1734048300187,0.11962028,100100.0,100090.0,0.95639488]
[1734048302190,0.29534416,100100.0,100090.0,0.89350144]
[1734048302396,0.96415447,100100.0,100090.0,0.17939072]
[1734048302695,0.049942,100090.0,100080.0,0.4684526]
[1734048302998,0.74292057,100090.0,100080.0,0.4684526]
[1734048303197,0.68002713,100090.0,100080.0,0.4684526]
[1734048304097,0.68002713,100090.0,100080.0,0.22933472]
[1734048304306,0.68002713,100090.0,100080.0,0.4684526]
[1734048304615,0.9341971,100090.0,100080.0,0.17939072]
[1734048304998,0.049947,100080.0,100070.0,0.5329576]
[1734048305197,0.53042664,100080.0,100070.0,0.5329576]
[1734048305596,0.68002949,100080.0,100070.0,0.5329576]
[1734048305803,0.77588753,100080.0,100070.0,0.5329576]
[1734048306106,0.77585065,100080.0,100070.0,0.22933972]
[1734048306313,0.83935065,100080.0,100070.0,0.22933972]
[1734048306525,0.71970789,100080.0,100070.0,0.22933972]
[1734048306807,0.62384985,100080.0,100070.0,0.22933972]
[1734048307202,0.74347245,100080.0,100070.0,0.049949]
[1734048307506,0.74347245,100080.0,100070.0,0.22933972]
[1734048308309,0.74347245,100080.0,100070.0,0.049949]
[1734048308803,0.62384985,100080.0,100070.0,0.22933972]
[1734048309205,0.74345016,100080.0,100070.0,0.22933972]
[1734048309509,0.38265016,100080.0,100070.0,0.22933972]
[1734048310006,0.74345016,100080.0,100070.0,0.22933972]
[1734048310407,0.62384985,100080.0,100070.0,0.22933972]
[1734048311205,0.74345072,100080.0,100070.0,0.22933972]
[1734048311901,0.75196921,100080.0,100070.0,0.22933972]
[1734048314214,0.75196921,100080.0,100070.0,0.049949]
[1734048315209,0.049952,100070.0,100060.0,2.00066968]
[1734048315507,0.14581004,100070.0,100060.0,1.97006968]
[1734048315712,0.16955287,100070.0,100060.0,1.7309518]
[1734048316007,0.31915572,100070.0,100060.0,1.50160608]
[1734048316214,0.31915572,100070.0,100060.0,0.00160608]
[1734048317009,0.67995572,100070.0,100060.0,0.00160608]
[1734048317807,0.77581376,100070.0,100060.0,0.00160608]
[1734048318008,0.75614793,100070.0,100060.0,0.00160608]
[1734048318409,0.93422707,100070.0,100060.0,0.00160608]
[1734048319109,0.75614793,100070.0,100060.0,0.00160608]
[1734048319317,0.93422707,100070.0,100060.0,0.00010714]
[1734048320114,0.83836903,100070.0,100060.0,0.00010714]
[1734048320321,0.93422707,100070.0,100060.0,0.00010714]
[1734048321608,0.78462422,100070.0,100060.0,0.00010714]
[1734048323209,0.93381441,100070.0,100060.0,0.00010714]
[1734048323715,0.93381884,100070.0,100060.0,0.00010714]
[1734048323907,0.78462422,100070.0,100060.0,0.00010714]
[1734048324112,0.93379381,100070.0,100060.0,0.00010714]
[1734048325316,0.90088492,100070.0,100060.0,0.00010714]
[1734048325916,0.96383407,100070.0,100060.0,0.00010714]
[1734048326119,0.049967,100040.0,100030.0,0.32536172]
[1734048326416,0.11291615,100040.0,100030.0,0.145971]
[1734048326721,0.11291615,100040.0,100030.0,1.645971]
[1734048326909,0.47371615,100040.0,100030.0,1.645971]
[1734048327122,0.47379185,100040.0,100030.0,1.645971]
[1734048327507,0.4108427,100040.0,100030.0,1.70892015]
[1734048328214,0.0500427,100040.0,100030.0,1.645971]
[1734048328404,0.0500427,100040.0,100030.0,1.70892015]
[1734048329214,0.0500427,100040.0,100030.0,1.645971]
[1734048332415,0.08948759,100050.0,100030.0,0.78210331]
[1734048332617,0.11931679,100070.0,100050.0,0.049962]
[1734048332916,0.53005979,100090.0,100060.0,2.30599185]
[1734048333116,0.11931679,100090.0,100080.0,0.14588859]
[1734048333319,0.67922738,100100.0,100090.0,0.049942]
[1734048333510,7.059e-05,100100.0,100090.0,0.80586564]
[1734048333713,0.17807914,100120.0,100110.0,0.049932]
[1734048334014,0.67920938,100130.0,100120.0,0.049927]
[1734048334216,0.53852419,100130.0,100120.0,0.049927]
[1734048334418,0.17772419,100130.0,100120.0,0.049927]
[1734048334720,0.68439278,100130.0,100110.0,0.410731]
[1734048334915,0.50666859,100120.0,100110.0,1.5]
[1734048335215,0.049932,100110.0,100100.0,0.049936]
[1734048335414,0.50667359,100110.0,100090.0,0.110741]
[1734048335613,0.62599038,100110.0,100090.0,1.610741]
[1734048336320,0.410732,100110.0,100090.0,0.110741]
[1734048336617,0.410732,100110.0,100090.0,0.080541]
[1734048336618,0.55661059,100110.0,100090.0,0.080541]
[1734048336916,0.14587859,100100.0,100090.0,0.080541]
[1734048337116,0.049937,100100.0,100090.0,0.080541]
[1734048340219,0.3608,100110.0,100090.0,0.53728259]
[1734048340419,0.3608,100110.0,100100.0,0.14587859]
[1734048340818,0.3608,100110.0,100100.0,0.17637859]
[1734048344217,0.50667359,100110.0,100090.0,0.441341]
[1734048344417,0.410732,100110.0,100090.0,0.441341]
[1734048345217,0.50667359,100110.0,100090.0,0.441341]
[1734048346123,0.410732,100110.0,100090.0,0.53728259]
[1734048346427,0.049932,100110.0,100090.0,0.58722059]
[1734048347421,0.049932,100110.0,100090.0,0.58721759]
[1734048347624,0.049932,100110.0,100090.0,0.53727959]
[1734048347824,0.049932,100110.0,100100.0,0.049937]
[1734048348826,0.44969939,100120.0,100110.0,0.049932]
[1734048349031,0.44969939,100120.0,100110.0,0.14587359]
[1734048349332,0.5495945,100120.0,100110.0,0.14587359]
[1734048350233,0.44969939,100120.0,100110.0,0.14587359]
[1734048351528,0.00887139,100120.0,100110.0,0.14587359]
[1734048351831,0.049923,100130.0,100120.0,0.049927]
[1734048352031,0.049923,100130.0,100120.0,0.14586859]
[1734048352329,0.049923,100130.0,100120.0,0.049927]
[1734048352520,0.049923,100130.0,100120.0,0.14586859]
[1734048352727,0.049923,100130.0,100120.0,0.17736859]
[1734048353237,0.474718,100140.0,100130.0,0.049922]
[1734048354232,0.4833208,100140.0,100130.0,0.049922]
[1734048357030,0.4193208,100140.0,100130.0,0.14586359]
[1734048357229,0.0086028,100140.0,100130.0,0.14586359]
[1734048357425,0.410713,100150.0,100130.0,0.14586359]
[1734048357629,0.410713,100150.0,100140.0,0.14585859]
[1734048357833,0.410713,100150.0,100140.0,0.049917]
[1734048359040,0.41928308,100150.0,100140.0,0.049917]
[1734048360241,0.53859987,100150.0,100140.0,0.049917]
[1734048361232,0.68776946,100150.0,100140.0,0.049917]
[1734048361435,0.53859987,100150.0,100140.0,0.049917]
[1734048362342,0.56845267,100150.0,100140.0,0.049917]
[1734048363046,0.049917,100140.0,100130.0,0.04992]
[1734048363345,0.16927843,100140.0,100130.0,0.04992]
[1734048365452,0.16927843,100140.0,100130.0,0.08002]
[1734048365834,0.11936143,100140.0,100130.0,0.53676159]
[1734048366039,0.51853967,100150.0,100130.0,0.56736159]
[1734048366040,0.2771011,100150.0,100130.0,0.56736159]
[1734048366249,0.12793151,100150.0,100140.0,0.53675859]
[1734048367446,0.00857008,100150.0,100140.0,0.53675859]
[1734048367645,0.79275002,100160.0,100140.0,0.48684159]
[1734048367846,0.71163902,100160.0,100150.0,0.049912]
[1734048368153,0.72053343,100160.0,100150.0,0.14585359]
[1734048369245,0.21056384,100160.0,100150.0,0.049912]
[1734048369747,0.72053343,100160.0,100150.0,0.049912]
[1734048370246,0.72040675,100160.0,100150.0,0.049912]
[1734048370445,0.601172,100160.0,100150.0,0.049912]
[1734048370648,0.72040677,100160.0,100150.0,0.049912]
[1734048371947,0.67049877,100160.0,100150.0,0.049912]
[1734048372151,0.12812918,100160.0,100150.0,0.14585359]
[1734048373351,0.12812918,100160.0,100150.0,0.50665359]
[1734048373650,0.12812918,100160.0,100150.0,0.53965359]
[1734048376445,0.12812918,100160.0,100150.0,2.03965359]
[1734048376646,0.00889441,100160.0,100150.0,2.03965359]
[1734048376855,0.26840436,100170.0,100160.0,0.049907]
[1734048377044,0.11923477,100170.0,100160.0,0.17694859]
[1734048377939,0.16913677,100170.0,100160.0,0.049907]
[1734048378149,0.31830636,100170.0,100160.0,0.049907]
[1734048378351,0.16913677,100170.0,100160.0,0.049907]
[1734048379154,0.11923477,100170.0,100160.0,0.049907]
[1734048379361,0.11923477,100170.0,100160.0,0.14584859]